[Event "Chessable English Open-ch 2022"]
[Site "Kenilwoth"]
[Date "2022.05.21"]
[Round "5.9"]
[White "Shenbagakumar, Gautham"]
[Black "Wells, Peter K"]
[Result "0-1"]
[ECO "C58"]
[WhiteElo "1700"]
[BlackElo "2374"]
[Annotator "TA"]
[PlyCount "58"]
[EventDate "2022.05.18"]
[EventType "swiss"]
[EventCountry "ENG"]
[SourceTitle "playchess.com"]
[Source "ChessBase"]
[SourceQuality "1"]
[TimeControl "5400+30"]

{[%evp 14,57,27,26,32,33,30,26,26,17,9,18,16,9,10,16,31,-48,0,0,0,0,0,0,2,6,0,-22,-4,-48,-38,-80,-77,-78,-75,-408,-402,-378,-139,-137,-74,-1160,-1093,-29997,-29998,-29999]} 1. e4 {[%emt 0:00:03]} e5 {[%emt 0:05:51]} 2. Nf3 {[%emt 0:00:04]} Nc6 {[%emt 0:00:05]} 3. Bc4 {[%emt 0:00:03]} Nf6 {[%emt 0:00:26][%cal Bg8f6,Bf6d5,Bd5f4,Bf4d3][%mdl 32]} 4. Ng5 {[%emt 0:00:05]} d5 {[%emt 0:00:10]} 5. exd5 {[%emt 0:00:04]} Na5 {[%emt 0:00:26]} 6. Bb5+ {[%emt 0:00:05]} c6 {[%emt 0:00:09]} 7. dxc6 {[%emt 0:00:05]} bxc6 {[%emt 0:00:03]} 8. Bd3 {[%emt 0:12:52]} Nd5 {[%emt 0:05:33] C58: Two Knights: 4 Ng5 d5 5 exd5 Na5 sidelines.} 9. Nf3 {[%emt 0:00:17]} (9. Qh5 g6 10. Nxf7 gxh5 $17) 9... Bd6 {[%emt 0:03:28]} 10. O-O {[%emt 0:00:16]} Nf4 {[%emt 0:04:06] White has an edge.} 11. Re1 {[%emt 0:11:45]} Nxd3 {[%emt 0:02:21]} 12. cxd3 {[%emt 0:00:07]} O-O {[%emt 0:00:50]} 13. Nc3 {[%emt 0:16:52] The main line 13.Nc3 scores better than 13.Nxe5.} c5 {[%emt 0:06:44]} 14. b3 {[%emt 0:03:27]} Nc6 {[%emt 0:06:55]} 15. Bb2 {[%emt 0:00:49]} (15. Ba3 $14) 15... Ba6 {[%emt 0:09:25]} (15... f6 $1 $15) 16. Ne4 $11 {[%emt 0:05:56]} f6 {[%emt 0:04:30]} 17. Ba3 {[%emt 0:06:28]} Bxd3 {[%emt 0:11:53]} 18. Nxc5 {[%emt 0:04:58] [#] Nb7 is the strong threat.} Bxc5 {[%emt 0:01:48]} 19. Bxc5 {[%emt 0:00:05] [#]} Re8 $146 {[%emt 0:00:16]} ({Predecessor:} 19... Rf7 20. Re3 Qd5 21. b4 Rd8 22. Qb3 Bc4 23. Qc2 Bd3 24. Qc3 e4 25. Ne1 Ne5 26. Nxd3 Nxd3 {½-½ (77) Bagi,M (2385)-Ozturk Orenli,K (2250) Graz 2015}) 20. Rc1 {[%emt 0:07:52]} e4 {[%emt 0:08:22][%mdl 1024] Black has compensation.} 21. Nh4 {[%emt 0:00:15]} (21. b4 $5) 21... Qd7 $1 {[%emt 0:00:58] Prevents Nf5.} 22. g4 {[%emt 0:09:47]} Ne5 {[%emt 0:03:07] And now ...h5 would win.} 23. h3 {[%emt 0:00:48]} h5 {[%emt 0:09:29][%cal Rh5g4]} 24. Nf5 $2 {[%emt 0:01:50][%mdl 8192]} (24. Re3 $17 {is more resistant.}) 24... hxg4 $19 {[%emt 0:00:51]} (24... Nf3+ $2 25. Kg2 $19) 25. hxg4 {[%emt 0:00:05]} Nf3+ $2 {[%emt 0:00:26]} (25... g6 $19 {has better winning chances.} 26. Ng3 (26. Nh6+ $2 Kg7 $19) 26... Nf3+ 27. Kg2 Nxe1+ 28. Qxe1 Qxg4) 26. Kg2 $17 {[%emt 0:00:06]} Re5 {[%emt 0:02:05] Black is much more active.} ({Much less strong is} 26... Qc7 {[#]} 27. Bd6 $1 (27. Rh1 Qf4 $11) 27... Nxe1+ 28. Qxe1 $18) ({Better is} 26... Nxe1+ 27. Qxe1 e3 28. Bxe3 Bxf5 29. gxf5 Qxf5) 27. Ne3 $2 {[%emt 0:03:51][%mdl 8192]} Rg5 $19 {[%emt 0:00:59] ( -> ...Rxg4+)} 28. Kg3 {[%emt 0:01:14]} Qc7+ {[%emt 0:00:27]} 29. Kg2 {[%emt 0:00:46]} Qh2# {[%emt 0:13:17] Weighted Error Value: White=0.78/Black=0.17 (very precise)} 0-1

[Event "Chessable English Open-ch 2022"]
[Site "Kenilwoth"]
[Date "2022.05.21"]
[Round "5.10"]
[White "Southcott-Moyers, Indy"]
[Black "Okhai, Shabir"]
[Result "1/2-1/2"]
[ECO "D32"]
[WhiteElo "2028"]
[BlackElo "2121"]
[Annotator "TA"]
[PlyCount "46"]
[EventDate "2022.05.18"]
[EventType "swiss"]
[EventCountry "ENG"]
[SourceTitle "playchess.com"]
[Source "ChessBase"]
[SourceQuality "1"]
[TimeControl "5400+30"]

{[%evp 19,20,0,6]} 1. d4 {[%emt 0:00:01]} Nf6 {[%emt 0:00:04]} 2. c4 {[%emt 0:00:09]} e6 {[%emt 0:00:05][%cal Be7e6,Be6d5,Bd5d4][%mdl 32]} 3. Nf3 {[%emt 0:00:07]} c5 {[%emt 0:00:04]} 4. e3 {[%emt 0:01:46]} d5 {[%emt 0:00:13]} 5. Nc3 {[%emt 0:03:42]} a6 {[%emt 0:00:24]} 6. dxc5 {[%emt 0:01:55]} Bxc5 {[%emt 0:02:25]} 7. cxd5 {[%emt 0:03:29]} exd5 {[%emt 0:00:44]} 8. Be2 {[%emt 0:00:14]} Nc6 {[%emt 0:01:19]} 9. O-O {[%emt 0:00:16]} O-O {[%emt 0:00:08]} 10. b3 {[%emt 0:02:58]} d4 {[%emt 0:05:22] [#]} {Predecessor:} 11. Na4 $146 {D32: Tarrasch Defence: Sidelines and lines without g3.} Ba7 12. exd4 Nxd4 13. Nxd4 Bxd4 14. Bb2 Bxb2 15. Nxb2 Be6 16. Bf3 Bd5 17. Bxd5 Qxd5 18. Nc4 Rad8 19. Qc2 Qd3 20. Qb2 Qd4 21. Qc2 Qd3 22. Qb2 Qd4 23. Qc2 Qd3 {½-½ (23) Nagy,G (2530)-Berczes,D (2452) Budapest 2022} 1/2-1/2

[Event "Chessable English Open-ch 2022"]
[Site "Kenilwoth"]
[Date "2022.05.21"]
[Round "5.11"]
[White "Thompson, Ian D"]
[Black "Zheng, Harry Z"]
[Result "1/2-1/2"]
[ECO "A20"]
[WhiteElo "2074"]
[BlackElo "1915"]
[Annotator "TA"]
[PlyCount "72"]
[EventDate "2022.05.18"]
[EventType "swiss"]
[EventCountry "ENG"]
[SourceTitle "playchess.com"]
[Source "ChessBase"]
[SourceQuality "1"]
[TimeControl "5400+30"]

{[%evp 11,72,6,6,16,29,26,11,-22,-4,0,61,68,60,12,35,47,35,41,85,77,59,77,76,0,0,-16,-32,0,0,-56,-45,-152,-153,-170,-182,-170,-170,-162,-163,-180,-119,-139,-17,-17,72,71,64,70,62,64,56,55,35,35,47,69,144,143,138,0,0,0,205]} 1. c4 {[%emt 0:00:03]} e5 {[%emt 0:00:09]} 2. g3 {[%emt 0:00:09]} Nf6 {[%emt 0:00:07]} 3. Bg2 {[%emt 0:00:07]} d5 {[%emt 0:00:12]} 4. cxd5 {[%emt 0:00:09]} Nxd5 {[%emt 0:00:13]} 5. Nf3 {[%emt 0:00:12]} Nc6 {[%emt 0:00:18]} 6. O-O {[%emt 0:00:12]} Nb6 {[%emt 0:00:38]} 7. b3 {[%emt 0:00:18] A20: English Opening: 1...e5.} Be7 {[%emt 0:01:06] 7...Be6 is more advanced technology.} 8. Bb2 {[%emt 0:00:26]} f6 {[%emt 0:00:42]} 9. Qc1 {[%emt 0:00:58]} (9. d4 $5 {[%cal Rd4e5]}) 9... O-O {[%emt 0:03:34]} 10. Rd1 {[%emt 0:00:32] [#]} Nd4 $146 {[%emt 0:03:14]} (10... e4 $11 11. Ne1 Bg4) ({Predecessor:} 10... Qe8 11. Nc3 Bd6 12. d4 e4 13. Nd2 f5 14. Nc4 Ne7 15. Nxd6 cxd6 16. d5 Ng6 {1-0 (57) Aronian,L (2785)-Korobov,A (2692) Doha 2016}) 11. Nxd4 $14 {[%emt 0:03:21]} exd4 {[%emt 0:00:17]} 12. d3 {[%emt 0:00:22]} (12. e3 $14) 12... f5 {[%emt 0:12:10]} 13. Nd2 {[%emt 0:01:41]} f4 {[%emt 0:09:18]} 14. Nf3 {[%emt 0:01:14]} fxg3 {[%emt 0:06:28]} 15. hxg3 {[%emt 0:00:09]} c5 {[%emt 0:06:22]} 16. b4 {[%emt 0:11:59]} Na4 {[%emt 0:15:23] [#]} 17. Qc4+ {[%emt 0:05:52]} (17. bxc5 $1 $16 {Strongly threatening Qc4+.} Nxb2 18. Qxb2) 17... Kh8 $11 {[%emt 0:01:08]} 18. Rab1 {[%emt 0:00:31] Hoping for bxc5.} Nxb2 {[%emt 0:04:20]} 19. Rxb2 {[%emt 0:00:06]} Qb6 {[%emt 0:03:07]} 20. Rdb1 {[%emt 0:05:12]} (20. Ne5 $11 g6 21. f4) 20... Be6 $1 $15 {[%emt 0:01:06]} 21. Qc1 {[%emt 0:02:43]} (21. bxc5 $1 $15 Qxb2 22. Rxb2 Bxc4 23. dxc4) 21... cxb4 $17 {[%emt 0:01:10]} 22. Ng5 {[%emt 0:00:33]} Rac8 {[%emt 0:04:08]} 23. Qd2 {[%emt 0:00:02][%cal Rb2b4]} Bg8 {[%emt 0:00:57]} 24. Be4 {[%emt 0:01:31]} a5 {[%emt 0:05:28]} ({Stronger than} 24... Qf6 25. f4 $17) 25. Kg2 {[%emt 0:01:20]} h6 {[%emt 0:05:36]} ({Not} 25... Qf6 26. f4 $17) (25... Rf6 $19 26. Nf3 Rh6) 26. Nf3 {[%emt 0:00:08]} a4 {[%emt 0:00:38]} (26... Be6 $17 {White should prevent ...Rc3.} 27. Ne5 Kg8) 27. Ne5 $11 {[%emt 0:05:16]} Bf7 {[%emt 0:07:11] [#] Inhibits Ng6+.} (27... Rf6 $11 {remains equal.}) 28. Nd7 $1 $16 {[%emt 0:00:44][%csl LRb6,LRf8]} Qc7 {[%emt 0:00:27]} 29. Nxf8 {[%emt 0:02:19]} Bxf8 {[%emt 0:00:28]} 30. Rxb4 {[%emt 0:02:27]} Bxb4 {[%emt 0:00:27]} 31. Rxb4 {[%emt 0:02:31]} Qc3 {[%emt 0:02:21] [#]} 32. Qf4 {[%emt 0:01:50][%cal Of4f7]} Qxb4 {[%emt 0:01:19]} 33. Qf5 {[%emt 0:00:09][%csl Ge4][%cal Rf5h7]} Bg8 {[%emt 0:00:46] Prevents Qh7+.} 34. Qxc8 {[%emt 0:00:07] Intending Bd5 and mate.} Qd6 {[%emt 0:00:31] Inhibits Bd5.} 35. Qxb7 {[%emt 0:04:08]} (35. a3 $16) 35... a3 $1 $11 {[%emt 0:03:41]} 36. Qa8 {[%emt 0:00:05]} Qc5 $2 {[%emt 0:00:30] Never resign too early!  Weighted Error Value: White=0.22 (precise) /Black=0.25 (precise)} (36... g6 $11) 1/2-1/2

[Event "Chessable English Open-ch 2022"]
[Site "Kenilwoth"]
[Date "2022.05.21"]
[Round "5.12"]
[White "Khoury, Theo"]
[Black "Kumar, Soham"]
[Result "1-0"]
[ECO "B90"]
[WhiteElo "1927"]
[BlackElo "1678"]
[Annotator "TA"]
[PlyCount "59"]
[EventDate "2022.05.18"]
[EventType "swiss"]
[EventCountry "ENG"]
[SourceTitle "playchess.com"]
[Source "ChessBase"]
[SourceQuality "1"]
[TimeControl "5400+30"]

{[%evp 19,58,28,33,40,63,52,51,55,129,117,126,118,175,162,197,172,237,235,216,219,343,307,344,336,334,304,470,366,514,497,464,466,3154,5281,2487,2447,29997,29998,29998,29999,29999]} 1. e4 {[%emt 0:00:03]} c5 {[%emt 0:00:05]} 2. Nf3 {[%emt 0:00:05]} d6 {[%emt 0:00:05]} 3. d4 {[%emt 0:00:04]} cxd4 {[%emt 0:00:06]} 4. Nxd4 {[%emt 0:00:06]} Nf6 {[%emt 0:00:07]} 5. Nc3 {[%emt 0:00:05]} a6 {[%emt 0:00:04]} 6. f3 {[%emt 0:00:04]} e5 {[%emt 0:00:08]} 7. Nb3 {[%emt 0:00:04]} Be6 {[%emt 0:00:06]} 8. Be3 {[%emt 0:00:08]} Be7 {[%emt 0:00:07]} 9. Qd2 {[%emt 0:00:07]} Nbd7 {[%emt 0:00:07]} 10. g4 {[%emt 0:00:13]} b5 {[%emt 0:00:12]} 11. a4 {[%emt 0:00:51][%cal Ba2a4,Ba4a5][%mdl 32] B90: Sicilian Najdorf: Unusual White 6th moves, 6 Be3 Ng4 and 6 Be3 e5.} b4 {[%emt 0:02:47]} 12. Nd5 {[%emt 0:00:11]} Bxd5 {[%emt 0:01:50]} 13. exd5 {[%emt 0:00:14] White is slightly better.} Nb6 {[%emt 0:02:53] [#]} (13... h6 $14) 14. a5 $1 $16 {[%emt 0:00:15]} Nbd7 {[%emt 0:06:42]} 15. O-O-O {[%emt 0:01:46] White is more active.} Qb8 {[%emt 0:08:58]} (15... Qc7 $16 {is a better defense.}) 16. h4 {[%emt 0:02:24][%cal Bh2h4,Bh4h5][%mdl 32]} O-O {[%emt 0:01:54]} 17. h5 {[%emt 0:02:46] [#]} Qc7 $146 {[%emt 0:12:58]} (17... h6 $142 18. g5 hxg5) ({Predecessor:} 17... Ne8 18. g5 Nc5 19. g6 Nxb3+ 20. cxb3 Qc7+ 21. Kb1 Qxa5 22. Bh3 Kh8 23. h6 fxg6 24. Be6 Bf6 25. Qh2 {1-0 (25) Marin,S (2326)-Herrera Perez,M (1958) Santander 2012}) 18. g5 $18 {[%emt 0:03:19][%cal Bg4g5,Bg5g6][%mdl 32]} Ne8 {[%emt 0:00:13]} 19. g6 {[%emt 0:07:51]} Nc5 {[%emt 0:01:31]} (19... Rd8 {was called for.} 20. gxh7+ (20. Bxa6 h6 $16) 20... Kxh7 21. Qd3+ (21. Bxa6 Nc5 $16) 21... Kh8 22. Qxa6 (22. h6 g6 $16) 22... Nc5 23. Nxc5 dxc5) 20. Nxc5 {[%emt 0:13:30]} ({Stronger than} 20. Qxb4 Rb8 21. gxh7+ Kh8 $11) 20... dxc5 {[%emt 0:00:12] [#]} 21. h6 $1 {[%emt 0:03:35]} fxg6 {[%emt 0:03:38]} 22. hxg7 {[%emt 0:00:31]} Kxg7 {[%emt 0:02:17]} (22... Rf7 {might work better.} 23. d6 Nxd6) 23. Bh6+ {[%emt 0:00:49]} ({Less strong is} 23. Qh2 Nf6 24. Qh6+ Kf7 $18) 23... Kg8 {[%emt 0:01:02]} (23... Kh8 $142 24. Bxf8 Bxf8) 24. Bxf8 {[%emt 0:00:30]} Bxf8 {[%emt 0:00:08]} 25. d6 {[%emt 0:00:33]} Qxd6 {[%emt 0:01:29]} (25... Qf7 $142 26. d7 Nd6) 26. Bc4+ {[%emt 0:00:36]} Kh8 {[%emt 0:00:35]} 27. Qg5 {[%emt 0:05:13]} Qf6 {[%emt 0:02:52] [#]} 28. Rxh7+ $3 {[%emt 0:00:13][%mdl 576] Decoy, Clearance. White mates.} Kxh7 {[%emt 0:00:57]} 29. Rh1+ {[%emt 0:00:04]} Kg7 {[%emt 0:00:33]} 30. Qh6# {[%emt 0:00:36] Black did not feel at home in the position after the opening.  Weighted Error Value: White=0.07 (flawless) /Black=0.88} 1-0

[Event "Chessable English Open-ch 2022"]
[Site "Kenilwoth"]
[Date "2022.05.21"]
[Round "5.13"]
[White "Hepworth, Peter"]
[Black "Ireland, David J"]
[Result "1-0"]
[ECO "A43"]
[WhiteElo "1843"]
[BlackElo "2000"]
[Annotator "TA"]
[PlyCount "85"]
[EventDate "2022.05.18"]
[EventType "swiss"]
[EventCountry "ENG"]
[SourceTitle "playchess.com"]
[Source "ChessBase"]
[SourceQuality "1"]
[TimeControl "5400+30"]

{[%evp 9,85,34,35,43,58,2,40,36,27,17,17,0,31,0,16,-25,-41,-76,-58,-87,-105,-131,-24,-56,-57,-59,-57,-69,-62,-63,-41,-27,-37,-64,-71,-93,-90,-115,-122,-114,-109,-243,-113,-116,-123,-122,-108,-126,-79,-87,-67,-81,-33,-45,-57,-49,-50,-53,-54,-54,-2,-5,5,6,222,222,256,236,219,186,376,383,1514,1454,29997,29998,29998,29999]} 1. d4 {[%emt 0:05:51]} Nf6 {[%emt 0:00:50]} 2. Nf3 {[%emt 0:00:07]} c5 {[%emt 0:00:10]} 3. d5 {[%emt 0:00:06]} b5 {[%emt 0:00:12]} 4. c3 {[%emt 0:00:05]} e6 {[%emt 0:02:57]} 5. e4 {[%emt 0:04:29]} Nxe4 {[%emt 0:03:51]} 6. Bxb5 {[%emt 0:01:06] [#] A43: Schmid Benoni.} Qb6 $146 {[%emt 0:03:19]} ({Predecessor:} 6... Bb7 7. dxe6 fxe6 8. O-O Be7 9. Ne5 Nf6 10. c4 O-O 11. Nc3 d6 12. Nf3 a6 {0-1 (43) Diermair,A (2459)-Kristoferitsch,D (2212) Graz 2021}) 7. a4 {[%emt 0:01:24]} (7. c4) ({White should play} 7. c4 $14) 7... Nf6 {[%emt 0:05:21]} (7... Qd6) 8. dxe6 {[%emt 0:18:34] White is slightly better.} (8. c4) 8... fxe6 {[%emt 0:01:00]} 9. O-O {[%emt 0:09:18]} Be7 {[%emt 0:06:15]} 10. Bd3 {[%emt 0:03:27]} Ba6 {[%emt 0:06:56]} 11. c4 {[%emt 0:00:35]} Nc6 {[%emt 0:00:33]} 12. Bd2 {[%emt 0:02:19]} (12. Re1) 12... Qxb2 {[%emt 0:09:23]} 13. Bc3 {[%emt 0:02:20]} Qb8 {[%emt 0:02:59]} 14. g3 {[%emt 0:15:16]} (14. Re1) 14... Nb4 {[%emt 0:08:02]} 15. Bxb4 {[%emt 0:02:57]} Qxb4 {[%emt 0:01:02]} (15... cxb4 16. Nbd2 Bb7) (15... cxb4 $17 16. Nbd2 Bb7) 16. Na3 {[%emt 0:02:22]} O-O {[%emt 0:03:52]} 17. Ng5 {[%emt 0:02:14]} Qb7 {[%emt 0:07:19]} 18. Qc2 {[%emt 0:05:25][%cal Rd3h7]} h6 {[%emt 0:05:31]} 19. Nh7 {[%emt 0:00:53]} Nxh7 {[%emt 0:02:01]} 20. Bxh7+ {[%emt 0:00:06]} Kh8 {[%emt 0:00:10]} 21. Be4 {[%emt 0:03:15]} d5 {[%emt 0:03:22]} 22. Bg2 {[%emt 0:01:13]} Qd7 {[%emt 0:01:09]} 23. Rfe1 {[%emt 0:01:01]} Bf6 {[%emt 0:01:13]} 24. Rad1 {[%emt 0:00:15][%cal Rc4d5]} Bd4 {[%emt 0:00:32] A strong pair of Bishops.} 25. Re2 {[%emt 0:01:44]} (25. Rd2) (25. Rd2 $17) 25... Rf6 {[%emt 0:02:07]} (25... Rab8 26. Nb5 dxc4) (25... Rab8 $19 {has better winning chances. Hoping for ...Rb2.} 26. Nb5 dxc4) 26. Nb5 $17 {[%emt 0:01:31]} Bxb5 {[%emt 0:02:17]} 27. axb5 {[%emt 0:00:15]} Raf8 {[%emt 0:02:22]} 28. Rf1 {[%emt 0:00:19]} R8f7 {[%emt 0:07:23]} (28... Qf7 $142 29. Qa2 dxc4 30. Qxc4 Bxf2+ 31. Kh1 Qh5) 29. Qa2 {[%emt 0:01:14][%cal Rc4d5]} dxc4 {[%emt 0:02:33]} 30. Qxc4 {[%emt 0:00:27]} e5 {[%emt 0:01:19]} (30... g5 $17) 31. Be4 {[%emt 0:04:01]} (31. Bc6 Qh3 32. Bg2) 31... g5 {[%emt 0:00:38]} 32. Kg2 {[%emt 0:00:54]} h5 {[%emt 0:01:36][%cal Bh6h5,Bh5h4][%mdl 32]} 33. h3 {[%emt 0:00:04]} h4 {[%emt 0:01:05]} 34. g4 {[%emt 0:00:10]} Rf4 {[%emt 0:01:37]} ({Black should try} 34... Qe8 $15) 35. f3 $11 {[%emt 0:00:05]} Qd6 {[%emt 0:01:03]} 36. Ra2 {[%emt 0:01:23][%cal Be2a2,Ba2a6,Ba6g6,Bg6g5,Bg5h5][%mdl 32] [#] And now Ra6 would win.} Qf6 {[%emt 0:01:41]} (36... R4f6 $11) 37. Ra6 $18 {[%emt 0:01:19] Active counter play!} Qg7 {[%emt 0:00:56]} 38. Rg6 {[%emt 0:00:17]} Qf8 {[%emt 0:01:54][%cal Of4e4] [#]} 39. Qd5 {[%emt 0:00:28]} c4 $2 {[%emt 0:01:15]} (39... R7f6) 40. Rxg5 {[%emt 0:00:55] aiming for Rh5+. The board is on fire.} Qb4 $2 {[%emt 0:01:12]} (40... R7f6 41. Rd1 Rxe4 42. Qxe4 Qf7 43. Rh5+ Kg8 44. Qa8+ Qf8 45. Qd5+ Qf7 46. Qd8+ Qf8) 41. Qd8+ {[%emt 0:01:40]} Rf8 {[%emt 0:00:18]} 42. Rh5+ {[%emt 0:00:17]} Kg8 {[%emt 0:00:46]} 43. Bd5+ {[%emt 0:00:05] What a bad dream for Black.  Weighted Error Value: White=0.15 (very precise) /Black=0.50} 1-0

[Event "Chessable English Open-ch 2022"]
[Site "Kenilwoth"]
[Date "2022.05.21"]
[Round "5.14"]
[White "Parker, Keith"]
[Black "Shearsby, Jude"]
[Result "0-1"]
[ECO "A49"]
[WhiteElo "1815"]
[BlackElo "1849"]
[Annotator "NA RC COMBH"]
[PlyCount "131"]
[EventDate "2022.05.18"]
[EventType "swiss"]
[EventCountry "ENG"]
[SourceTitle "playchess.com"]
[Source "ChessBase"]
[SourceQuality "1"]
[TimeControl "5400+30"]

1. d4 {[%emt 0:00:21]} Nf6 {[%emt 0:00:09]} 2. Nf3 {[%emt 0:00:08]} g6 {[%emt 0:00:05]} 3. g3 {[%emt 0:00:09]} Bg7 {[%emt 0:00:06]} 4. Bg2 {[%emt 0:00:03]} O-O {[%emt 0:00:06]} 5. O-O {[%emt 0:00:05]} d6 {[%emt 0:00:03]} 6. Bg5 {[%emt 0:02:56]} c5 {[%emt 0:00:18]} 7. dxc5 {[%emt 0:04:52]} dxc5 {[%emt 0:00:11]} 8. Qxd8 {[%emt 0:00:04]} Rxd8 {[%emt 0:00:05]} 9. Nbd2 {[%emt 0:01:23]} Na6 {[%emt 0:04:50]} 10. c3 {[%emt 0:03:58]} Rb8 {[%emt 0:09:48]} ({Better is} 10... Be6 $11) 11. Nc4 {[%emt 0:03:19]} (11. Bf4 $14 {was preferrable.}) 11... Be6 {[%emt 0:07:05]} 12. Ne3 {[%emt 0:05:58]} Nd5 {[%emt 0:08:03]} (12... h6 $11 13. Bf4 Rbc8) 13. Nxd5 {[%emt 0:16:06]} Bxd5 {[%emt 0:00:08]} 14. Rfe1 {[%emt 0:00:52]} f6 {[%emt 0:01:12]} 15. e4 {[%emt 0:01:57]} Bc6 {[%emt 0:02:19]} 16. Bf4 {[%emt 0:00:47]} e5 {[%emt 0:00:17]} 17. Bd2 {[%emt 0:00:29]} Rd7 {[%emt 0:07:40]} 18. c4 {[%emt 0:09:12]} (18. Be3 $11) 18... Rbd8 {[%emt 0:04:01]} 19. Bc3 {[%emt 0:01:22]} Rd3 {[%emt 0:02:11]} 20. Re2 {[%emt 0:08:05]} Bh6 $17 {[%emt 0:05:17]} 21. Kf1 {[%emt 0:05:07]} Nc7 {[%emt 0:09:47]} 22. Ke1 {[%emt 0:01:10]} Ne6 {[%emt 0:04:27]} 23. Bd2 {[%emt 0:02:11]} Bxe4 {[%emt 0:01:41]} 24. Rxe4 {[%emt 0:08:34]} Bxd2+ {[%emt 0:00:24]} 25. Nxd2 {[%emt 0:01:11]} Rxd2 {[%emt 0:00:07]} 26. Re2 {[%emt 0:00:07]} Rxe2+ {[%emt 0:00:40]} 27. Kxe2 {[%emt 0:00:03]} Nd4+ {[%emt 0:00:18]} 28. Kf1 {[%emt 0:03:01]} b6 {[%emt 0:01:05]} 29. a4 {[%emt 0:02:37]} a5 {[%emt 0:01:26]} 30. Bd5+ {[%emt 0:02:59]} Kf8 {[%emt 0:31:41]} 31. Rc1 {[%emt 0:00:25]} Ke7 {[%emt 0:00:00]} 32. f4 {[%emt 0:02:07]} Kd6 {[%emt 0:00:00]} 33. fxe5+ {[%emt 0:01:54]} fxe5 {[%emt 0:00:00]} 34. Kg2 {[%emt 0:01:24]} Rf8 {[%emt 0:00:00]} 35. Rf1 {[%emt 0:00:05]} Rxf1 {[%emt 0:00:00]} 36. Kxf1 {[%emt 0:00:02]} e4 {[%emt 0:00:00]} 37. Bxe4 {[%emt 0:02:44]} Ke5 {[%emt 0:00:00]} 38. Bd5 {[%emt 0:00:38]} Nc2 {[%emt 0:00:00]} 39. Ke2 {[%emt 0:00:57]} Kd4 {[%emt 0:00:00]} 40. Bg8 {[%emt 0:00:52]} h6 {[%emt 0:00:00]} 41. Bh7 {[%emt 0:00:21]} Kxc4 {[%emt 0:00:00]} 42. Bxg6 {[%emt 0:00:15]} Nd4+ {[%emt 0:00:00]} 43. Kd1 {[%emt 0:01:26]} Kb3 {[%emt 0:00:00]} 44. Kc1 {[%emt 0:01:12]} Kxa4 {[%emt 0:00:00]} 45. Be4 {[%emt 0:01:14]} Kb3 {[%emt 0:00:00]} 46. g4 {[%emt 0:00:44]} c4 {[%emt 0:00:00]} 47. h4 {[%emt 0:00:21]} Ne6 {[%emt 0:00:00]} 48. Bc2+ {[%emt 0:01:54]} Kb4 {[%emt 0:00:00]} 49. Bf5 {[%emt 0:00:09]} Nd4 {[%emt 0:00:00]} 50. Bd7 {[%emt 0:02:08]} Nf3 {[%emt 0:00:00]} 51. h5 {[%emt 0:00:23]} Kc5 {[%emt 0:00:00]} 52. Kc2 {[%emt 0:01:00]} b5 {[%emt 0:00:00]} 53. Bc8 {[%emt 0:00:32]} b4 {[%emt 0:00:00]} 54. Bb7 {[%emt 0:00:05]} Ng5 {[%emt 0:00:00]} 55. b3 {[%emt 0:00:30]} c3 {[%emt 0:00:00]} 56. Kd3 {[%emt 0:00:33]} Ne6 {[%emt 0:00:17]} 57. Be4 {[%emt 0:01:27]} Kd6 {[%emt 0:03:27]} 58. Kc4 {[%emt 0:01:07]} Ke5 {[%emt 0:00:08]} 59. Bh7 {[%emt 0:01:16]} Ng5 {[%emt 0:04:11]} 60. Bf5 {[%emt 0:00:25]} Ne4 {[%emt 0:00:34]} 61. Kd3 {[%emt 0:01:06]} Nf6 {[%emt 0:00:22]} 62. Ke3 {[%emt 0:01:54]} Nd5+ {[%emt 0:00:50]} 63. Kd3 {[%emt 0:00:19]} Kf4 {[%emt 0:00:26]} 64. Kd4 {[%emt 0:01:04]} Ne3 {[%emt 0:00:09]} 65. Bg6 {[%emt 0:00:13]} c2 {[%emt 0:00:13]} 66. Bf5 {[%emt 0:01:38]} 0-1